[Event "Early-Titled-Tuesday-Blitz-March-12-2024"]
[Site "Chess.com"]
[Date "2024.03.12"]
[Round "9"]
[White "zajka-molotok"]
[Black "MightyMike_009"]
[Result "1-0"]
[WhiteElo "2569"]
[BlackElo "2857"]
[TimeControl "180+1"]
[EndTime "9:43:51 PDT"]
[Termination "zajka-molotok won by resignation"]

1. e4 {[%clk 0:03:00.9]} 1... e5 {[%clk 0:03:00.2]} 2. Nf3 {[%clk 0:02:59]} 2...
Nc6 {[%clk 0:03:00.5]} 3. Nc3 {[%clk 0:02:59.2]} 3... Nf6 {[%clk 0:03:00.6]} 4.
Bb5 {[%clk 0:02:58.8]} 4... Nd4 {[%clk 0:03:00.5]} 5. O-O {[%clk 0:02:56.8]}
5... c6 {[%clk 0:02:33.3]} 6. Bc4 {[%clk 0:02:47.6]} 6... Nxf3+ {[%clk
0:02:33.2]} 7. Qxf3 {[%clk 0:02:46.8]} 7... d6 {[%clk 0:02:33.7]} 8. d3 {[%clk
0:02:40.9]} 8... Be7 {[%clk 0:02:33.7]} 9. Qg3 {[%clk 0:02:36.4]} 9... O-O
{[%clk 0:02:19]} 10. Bb3 {[%clk 0:02:33.1]} 10... Kh8 {[%clk 0:02:12.9]} 11. h3
{[%clk 0:02:28.9]} 11... Be6 {[%clk 0:02:12.3]} 12. Bd2 {[%clk 0:02:10.9]} 12...
b5 {[%clk 0:02:01.7]} 13. f4 {[%clk 0:02:05.8]} 13... exf4 {[%clk 0:01:57.3]}
14. Qxf4 {[%clk 0:02:02]} 14... a5 {[%clk 0:01:42.2]} 15. Kh1 {[%clk 0:01:38.6]}
15... a4 {[%clk 0:01:34.5]} 16. Bxe6 {[%clk 0:01:37.7]} 16... fxe6 {[%clk
0:01:35.4]} 17. Qe3 {[%clk 0:01:34.4]} 17... e5 {[%clk 0:01:33.3]} 18. Ne2
{[%clk 0:01:33.5]} 18... a3 {[%clk 0:00:47.4]} 19. b3 {[%clk 0:01:32.9]} 19...
d5 {[%clk 0:00:44.4]} 20. Ng3 {[%clk 0:01:30]} 20... dxe4 {[%clk 0:00:37.8]} 21.
Nxe4 {[%clk 0:01:26.9]} 21... Nd5 {[%clk 0:00:35.7]} 22. Qg3 {[%clk 0:01:18.4]}
22... Qc7 {[%clk 0:00:35.6]} 23. c4 {[%clk 0:01:06.4]} 23... Nf4 {[%clk
0:00:34.4]} 24. Bxf4 {[%clk 0:01:00.4]} 24... exf4 {[%clk 0:00:35.3]} 25. Qg4
{[%clk 0:00:56.4]} 25... Rad8 {[%clk 0:00:34.8]} 26. Rf3 {[%clk 0:00:55.8]}
26... Qe5 {[%clk 0:00:33.9]} 27. Raf1 {[%clk 0:00:53.9]} 27... g5 {[%clk
0:00:29.1]} 28. Qh5 {[%clk 0:00:50.2]} 28... Qg7 {[%clk 0:00:26.9]} 29. h4
{[%clk 0:00:42.4]} 29... g4 {[%clk 0:00:24.5]} 30. Rxf4 {[%clk 0:00:40.6]} 30...
Rxf4 {[%clk 0:00:22]} 31. Rxf4 {[%clk 0:00:41.5]} 31... g3 {[%clk 0:00:20.5]}
32. Rf1 {[%clk 0:00:36.4]} 32... Rg8 {[%clk 0:00:18.4]} 33. Qf7 {[%clk
0:00:24.6]} 33... Qe5 {[%clk 0:00:12.2]} 34. Qf5 {[%clk 0:00:19.8]} 34... Qxf5
{[%clk 0:00:12.2]} 35. Rxf5 {[%clk 0:00:19.3]} 35... bxc4 {[%clk 0:00:11.8]} 36.
dxc4 {[%clk 0:00:17.1]} 36... Rg4 {[%clk 0:00:11.9]} 37. Ng5 {[%clk 0:00:14.5]}
37... Bc5 {[%clk 0:00:11.5]} 38. Nf3 {[%clk 0:00:13.4]} 38... Re4 {[%clk
0:00:10.4]} 39. Re5 {[%clk 0:00:12.7]} 39... Rxe5 {[%clk 0:00:09.3]} 40. Nxe5
{[%clk 0:00:12.6]} 40... Kg7 {[%clk 0:00:09.2]} 41. Nxc6 {[%clk 0:00:12.1]}
41... Kf6 {[%clk 0:00:09.7]} 42. b4 {[%clk 0:00:12.5]} 42... Be3 {[%clk
0:00:09.3]} 43. c5 {[%clk 0:00:12.6]} 43... Ke6 {[%clk 0:00:09.5]} 44. Na5
{[%clk 0:00:11.3]} 44... Kd5 {[%clk 0:00:09.4]} 45. c6 {[%clk 0:00:10.6]} 45...
Kd6 {[%clk 0:00:07.9]} 46. b5 {[%clk 0:00:10.6]} 46... Kc7 {[%clk 0:00:05.5]}
47. Nc4 {[%clk 0:00:10.5]} 47... Bf2 {[%clk 0:00:06.1]} 48. Nxa3 {[%clk
0:00:09.7]} 48... Kb6 {[%clk 0:00:06]} 49. Nc4+ {[%clk 0:00:09.7]} 49... Kc7
{[%clk 0:00:05.5]} 50. a4 {[%clk 0:00:09.5]} 50... h5 {[%clk 0:00:05.4]} 51. a5
{[%clk 0:00:09.5]} 51... Bd4 {[%clk 0:00:04.8]} 52. Nd2 {[%clk 0:00:06.1]} 52...
Bc3 {[%clk 0:00:03.3]} 53. Nb3 {[%clk 0:00:06.4]} 53... Be1 {[%clk 0:00:03.2]}
54. Kg1 {[%clk 0:00:06.6]} 54... Bf2+ {[%clk 0:00:02.4]} 55. Kf1 {[%clk
0:00:07]} 55... Kd6 {[%clk 0:00:02.9]} 56. Ke2 {[%clk 0:00:07.6]} 56... Bg1
{[%clk 0:00:03.5]} 57. Kf3 {[%clk 0:00:07.8]} 57... Bf2 {[%clk 0:00:04.2]} 58.
Kf4 {[%clk 0:00:08.2]} 58... Kc7 {[%clk 0:00:05]} 59. Kg5 {[%clk 0:00:08.3]}
59... Be1 {[%clk 0:00:05.8]} 60. Kxh5 {[%clk 0:00:08.5]} 60... Bxa5 {[%clk
0:00:06.6]} 61. Nxa5 {[%clk 0:00:07.4]} 61... Kb6 {[%clk 0:00:07.5]} 62. Nb3
{[%clk 0:00:07.7]} 62... Kxb5 {[%clk 0:00:08.4]} 63. c7 {[%clk 0:00:07.7]} 63...
Kc6 {[%clk 0:00:09.1]} 64. c8=Q+ {[%clk 0:00:08.1]} 64... Kd5 {[%clk 0:00:10]}
65. Qg4 {[%clk 0:00:08.4]} 65... Ke5 {[%clk 0:00:10.2]} 66. Qxg3+ {[%clk
0:00:09.3]} 66... Ke6 {[%clk 0:00:11.1]} 67. Qg5 {[%clk 0:00:09.3]} 67... Kf7
{[%clk 0:00:12]} 68. Kg4 {[%clk 0:00:09.7]} 68... Kf8 {[%clk 0:00:12.9]} 69. h5
{[%clk 0:00:10.2]} 69... Kf7 {[%clk 0:00:13.8]} 70. h6 {[%clk 0:00:10.8]} 70...
Kf8 {[%clk 0:00:14.7]} 71. h7 {[%clk 0:00:11.1]} 71... Kf7 {[%clk 0:00:15.6]}
1-0

[Event "Early-Titled-Tuesday-Blitz-March-12-2024"]
[Site "Chess.com"]
[Date "2024.03.12"]
[Round "9"]
[White "josephymwale33"]
[Black "David_ATM"]
[Result "0-1"]
[WhiteElo "2488"]
[BlackElo "2378"]
[TimeControl "180+1"]
[EndTime "9:44:00 PDT"]
[Termination "David_ATM won by resignation"]

1. e4 {[%clk 0:03:00.9]} 1... e5 {[%clk 0:03:00.1]} 2. Nf3 {[%clk 0:03:00.8]}
2... Nc6 {[%clk 0:03:00.7]} 3. d4 {[%clk 0:03:00.3]} 3... d6 {[%clk 0:03:00.5]}
4. dxe5 {[%clk 0:02:59.8]} 4... Nxe5 {[%clk 0:03:01.4]} 5. Nxe5 {[%clk
0:02:59.8]} 5... dxe5 {[%clk 0:03:02.3]} 6. Qxd8+ {[%clk 0:03:00.3]} 6... Kxd8
{[%clk 0:03:03.2]} 7. Bc4 {[%clk 0:03:00.3]} 7... Ke7 {[%clk 0:03:03.5]} 8. Nc3
{[%clk 0:02:59.9]} 8... c6 {[%clk 0:03:03.8]} 9. Be3 {[%clk 0:02:58.2]} 9... Be6
{[%clk 0:03:04]} 10. Bxe6 {[%clk 0:02:53.4]} 10... Kxe6 {[%clk 0:03:04.9]} 11.
O-O-O {[%clk 0:02:53.3]} 11... Nf6 {[%clk 0:02:49.5]} 12. f3 {[%clk 0:02:53.4]}
12... Bb4 {[%clk 0:02:45.7]} 13. Na4 {[%clk 0:02:50.8]} 13... b6 {[%clk
0:02:45.8]} 14. a3 {[%clk 0:02:41.2]} 14... Be7 {[%clk 0:02:45.1]} 15. Nc3
{[%clk 0:02:40.2]} 15... Rhd8 {[%clk 0:02:43.7]} 16. Ne2 {[%clk 0:02:39.4]}
16... Rxd1+ {[%clk 0:02:40.5]} 17. Rxd1 {[%clk 0:02:40.3]} 17... Rd8 {[%clk
0:02:41.3]} 18. Rxd8 {[%clk 0:02:39.5]} 18... Bxd8 {[%clk 0:02:42.2]} 19. Kd2
{[%clk 0:02:38.2]} 19... Be7 {[%clk 0:02:41.2]} 20. Kd3 {[%clk 0:02:38]} 20...
Nd7 {[%clk 0:02:41.4]} 21. b4 {[%clk 0:02:35.4]} 21... a6 {[%clk 0:02:36.1]} 22.
c4 {[%clk 0:02:32.7]} 22... b5 {[%clk 0:02:36.2]} 23. Nc1 {[%clk 0:02:24]} 23...
c5 {[%clk 0:02:16.1]} 24. cxb5 {[%clk 0:02:16.2]} 24... axb5 {[%clk 0:02:14.6]}
25. bxc5 {[%clk 0:02:16.2]} 25... Nxc5+ {[%clk 0:02:09.6]} 26. Kc3 {[%clk
0:01:58.4]} 26... Nb7 {[%clk 0:01:42.5]} 27. Kb2 {[%clk 0:01:52.9]} 27... Na5
{[%clk 0:01:42.6]} 28. Bf2 {[%clk 0:01:30.9]} 28... Nc4+ {[%clk 0:01:41.3]} 29.
Kb3 {[%clk 0:01:30.6]} 29... Bxa3 {[%clk 0:01:33.6]} 30. Nd3 {[%clk 0:01:30.7]}
30... Bd6 {[%clk 0:01:33.7]} 31. Kc3 {[%clk 0:01:10.1]} 31... h5 {[%clk
0:01:25.5]} 32. Kb3 {[%clk 0:01:07.2]} 32... Na5+ {[%clk 0:01:21.5]} 33. Kc3
{[%clk 0:01:06.5]} 33... Nc6 {[%clk 0:01:22.1]} 34. Be3 {[%clk 0:00:55.8]} 34...
g6 {[%clk 0:01:22.2]} 35. Bb6 {[%clk 0:00:49.1]} 35... f6 {[%clk 0:01:14.4]} 36.
h3 {[%clk 0:00:32.6]} 36... Kd7 {[%clk 0:01:13.9]} 37. Bf2 {[%clk 0:00:30]}
37... Kc8 {[%clk 0:01:12.5]} 38. Bh4 {[%clk 0:00:28]} 38... Be7 {[%clk
0:01:07.4]} 39. g4 {[%clk 0:00:27.2]} 39... hxg4 {[%clk 0:01:07.2]} 40. hxg4
{[%clk 0:00:27.2]} 40... Kd7 {[%clk 0:00:50.9]} 41. Bf2 {[%clk 0:00:24.4]} 41...
Ke6 {[%clk 0:00:50.6]} 42. Bg3 {[%clk 0:00:19.4]} 42... Bd6 {[%clk 0:00:50.1]}
43. Bf2 {[%clk 0:00:18.3]} 43... Be7 {[%clk 0:00:50.7]} 44. Bg3 {[%clk
0:00:18.4]} 44... Nd4 {[%clk 0:00:50.7]} 45. Bf2 {[%clk 0:00:14.2]} 45... Nxf3
{[%clk 0:00:48.3]} 46. Be3 {[%clk 0:00:14.1]} 46... f5 {[%clk 0:00:33.5]} 47.
gxf5+ {[%clk 0:00:13.5]} 47... gxf5 {[%clk 0:00:34.4]} 48. exf5+ {[%clk
0:00:13.1]} 48... Kxf5 {[%clk 0:00:35.3]} 49. Bc5 {[%clk 0:00:10.8]} 49... Bxc5
{[%clk 0:00:22.2]} 50. Nxc5 {[%clk 0:00:11.3]} 50... e4 {[%clk 0:00:22.6]} 51.
Kb4 {[%clk 0:00:09.7]} 51... Nd4 {[%clk 0:00:22.8]} 52. Kc3 {[%clk 0:00:08.4]}
52... Nc6 {[%clk 0:00:23.4]} 53. Kd2 {[%clk 0:00:06.4]} 53... Kf4 {[%clk
0:00:20.2]} 54. Ke2 {[%clk 0:00:05.8]} 54... Nd4+ {[%clk 0:00:19.3]} 55. Kd2
{[%clk 0:00:06]} 55... e3+ {[%clk 0:00:19.8]} 56. Kd3 {[%clk 0:00:06.4]} 56...
Nf5 {[%clk 0:00:13.7]} 57. Nb3 {[%clk 0:00:05.2]} 57... Kf3 {[%clk 0:00:12.2]}
58. Nc1 {[%clk 0:00:04.3]} 58... Ng3 {[%clk 0:00:11]} 59. Nb3 {[%clk 0:00:01.6]}
59... Kf2 {[%clk 0:00:08]} 60. Nd4 {[%clk 0:00:01.3]} 60... e2 {[%clk
0:00:08.5]} 61. Nxe2 {[%clk 0:00:01.4]} 61... Nxe2 {[%clk 0:00:08.7]} 62. Kc2
{[%clk 0:00:02.1]} 62... Nd4+ {[%clk 0:00:07.8]} 63. Kd3 {[%clk 0:00:01.9]}
63... Nc6 {[%clk 0:00:08.7]} 64. Ke4 {[%clk 0:00:02.7]} 64... b4 {[%clk
0:00:09.6]} 65. Kd5 {[%clk 0:00:02.3]} 65... b3 {[%clk 0:00:09]} 66. Kxc6 {[%clk
0:00:03.2]} 66... b2 {[%clk 0:00:09.9]} 0-1

[Event "Early-Titled-Tuesday-Blitz-March-12-2024"]
[Site "Chess.com"]
[Date "2024.03.12"]
[Round "9"]
[White "KuzubovYuriy"]
[Black "Oleksandr_Bortnyk"]
[Result "0-1"]
[WhiteElo "2919"]
[BlackElo "3013"]
[TimeControl "180+1"]
[EndTime "9:44:08 PDT"]
[Termination "Oleksandr_Bortnyk won on time"]

1. d4 {[%clk 0:03:00.9]} 1... d6 {[%clk 0:02:57.5]} 2. Nf3 {[%clk 0:02:56.2]}
2... Nf6 {[%clk 0:02:57.5]} 3. Nbd2 {[%clk 0:02:56.1]} 3... Nbd7 {[%clk
0:02:56.1]} 4. e4 {[%clk 0:02:52.2]} 4... e5 {[%clk 0:02:56.5]} 5. c3 {[%clk
0:02:52.6]} 5... Be7 {[%clk 0:02:54.4]} 6. Bd3 {[%clk 0:02:51.3]} 6... O-O
{[%clk 0:02:54.4]} 7. O-O {[%clk 0:02:52]} 7... b6 {[%clk 0:02:50.9]} 8. Re1
{[%clk 0:02:51.2]} 8... Bb7 {[%clk 0:02:50.3]} 9. Qc2 {[%clk 0:02:50.1]} 9...
Re8 {[%clk 0:02:35.2]} 10. a4 {[%clk 0:02:41.4]} 10... a5 {[%clk 0:02:34.7]} 11.
Nf1 {[%clk 0:02:30.2]} 11... Bf8 {[%clk 0:02:07.1]} 12. Ng3 {[%clk 0:02:26]}
12... c6 {[%clk 0:01:52.1]} 13. Be3 {[%clk 0:02:20.9]} 13... Qc7 {[%clk
0:01:48.5]} 14. Rad1 {[%clk 0:02:20.2]} 14... g6 {[%clk 0:01:48.5]} 15. h3
{[%clk 0:02:15.9]} 15... Bg7 {[%clk 0:01:48.8]} 16. Bf1 {[%clk 0:02:01.7]} 16...
Re7 {[%clk 0:01:48.3]} 17. dxe5 {[%clk 0:02:00.1]} 17... dxe5 {[%clk 0:01:45.6]}
18. Qb3 {[%clk 0:01:53.2]} 18... Ba6 {[%clk 0:01:33]} 19. Bxa6 {[%clk
0:01:50.8]} 19... Rxa6 {[%clk 0:01:33.9]} 20. Rd2 {[%clk 0:01:43.6]} 20... Ra8
{[%clk 0:01:30.9]} 21. Red1 {[%clk 0:01:43.8]} 21... Rb8 {[%clk 0:01:29.2]} 22.
Qc4 {[%clk 0:01:30.1]} 22... Ne8 {[%clk 0:01:23.4]} 23. b4 {[%clk 0:01:12.5]}
23... axb4 {[%clk 0:01:19.7]} 24. cxb4 {[%clk 0:01:12.5]} 24... b5 {[%clk
0:01:15.5]} 25. axb5 {[%clk 0:01:10.4]} 25... Rxb5 {[%clk 0:01:16.4]} 26. Rc2
{[%clk 0:01:01.7]} 26... Qb7 {[%clk 0:01:09.8]} 27. Qxc6 {[%clk 0:00:57.6]}
27... Rxb4 {[%clk 0:01:05]} 28. Qxb7 {[%clk 0:00:55.4]} 28... Rxb7 {[%clk
0:01:05.9]} 29. Rc8 {[%clk 0:00:55.2]} 29... h6 {[%clk 0:01:00.2]} 30. h4 {[%clk
0:00:53.5]} 30... Kh7 {[%clk 0:00:59.5]} 31. h5 {[%clk 0:00:53.9]} 31... Re6
{[%clk 0:00:51.5]} 32. hxg6+ {[%clk 0:00:52.1]} 32... fxg6 {[%clk 0:00:52.4]}
33. Ra1 {[%clk 0:00:31]} 33... Ndf6 {[%clk 0:00:48.8]} 34. Nd2 {[%clk 0:00:27]}
34... h5 {[%clk 0:00:45.4]} 35. Nf3 {[%clk 0:00:26.1]} 35... Bh6 {[%clk
0:00:45.8]} 36. Ng5+ {[%clk 0:00:22.6]} 36... Bxg5 {[%clk 0:00:46.1]} 37. Bxg5
{[%clk 0:00:23.5]} 37... Kg7 {[%clk 0:00:43]} 38. f3 {[%clk 0:00:21.1]} 38...
Kf7 {[%clk 0:00:40.1]} 39. Raa8 {[%clk 0:00:19.8]} 39... Nd7 {[%clk 0:00:37.9]}
40. Rd8 {[%clk 0:00:16.4]} 40... Rb1+ {[%clk 0:00:20.8]} 41. Kh2 {[%clk
0:00:16.6]} 41... Rb7 {[%clk 0:00:21.5]} 42. Nf1 {[%clk 0:00:16.5]} 42... Nb6
{[%clk 0:00:21.4]} 43. Ra6 {[%clk 0:00:15.3]} 43... Nc7 {[%clk 0:00:20.2]} 44.
Ra1 {[%clk 0:00:13.9]} 44... Re8 {[%clk 0:00:17.9]} 45. Rxe8 {[%clk 0:00:12]}
45... Nxe8 {[%clk 0:00:18.3]} 46. Rb1 {[%clk 0:00:11.8]} 46... Nd6 {[%clk
0:00:18.5]} 47. Ne3 {[%clk 0:00:11.4]} 47... Ke6 {[%clk 0:00:18.2]} 48. Rc1
{[%clk 0:00:11]} 48... Rb8 {[%clk 0:00:12.7]} 49. Rc6 {[%clk 0:00:10.7]} 49...
Kd7 {[%clk 0:00:11.8]} 50. Rc5 {[%clk 0:00:10.4]} 50... Ke6 {[%clk 0:00:12.4]}
51. Bh4 {[%clk 0:00:09.9]} 51... Rc8 {[%clk 0:00:04.9]} 52. Ra5 {[%clk
0:00:09.4]} 52... Rc3 {[%clk 0:00:04.7]} 53. Nd5 {[%clk 0:00:07.6]} 53... Nxd5
{[%clk 0:00:05]} 54. Rxd5 {[%clk 0:00:07.8]} 54... Nf7 {[%clk 0:00:02.2]} 55.
Ra5 {[%clk 0:00:07.2]} 55... Rc6 {[%clk 0:00:02.8]} 56. Bf2 {[%clk 0:00:06.8]}
56... g5 {[%clk 0:00:02.9]} 57. Kh3 {[%clk 0:00:05.9]} 57... Kf6 {[%clk
0:00:02.6]} 58. Be3 {[%clk 0:00:05.9]} 58... g4+ {[%clk 0:00:01.6]} 59. Kh4
{[%clk 0:00:05.6]} 59... gxf3 {[%clk 0:00:02.1]} 60. gxf3 {[%clk 0:00:05.9]}
60... Rc3 {[%clk 0:00:02.9]} 61. Ra6+ {[%clk 0:00:05.5]} 61... Kg7 {[%clk
0:00:03.7]} 62. Bc5 {[%clk 0:00:04.3]} 62... Rxf3 {[%clk 0:00:04.6]} 63. Kxh5
{[%clk 0:00:04.4]} 63... Rc3 {[%clk 0:00:02.9]} 64. Ba3 {[%clk 0:00:02.8]} 64...
Re3 {[%clk 0:00:02.8]} 65. Rg6+ {[%clk 0:00:02]} 65... Kh7 {[%clk 0:00:02.9]}
66. Rf6 {[%clk 0:00:02.1]} 66... Kg7 {[%clk 0:00:02.4]} 67. Rg6+ {[%clk
0:00:02.5]} 67... Kh7 {[%clk 0:00:03.1]} 68. Rf6 {[%clk 0:00:02.6]} 68... Nd8
{[%clk 0:00:03.6]} 69. Bd6 {[%clk 0:00:02.2]} 69... Rxe4 {[%clk 0:00:03.6]} 70.
Rf5 {[%clk 0:00:02.1]} 70... Nc6 {[%clk 0:00:03.4]} 71. Rf7+ {[%clk 0:00:01.6]}
71... Kg8 {[%clk 0:00:04.1]} 72. Rc7 {[%clk 0:00:01.7]} 72... Nd4 {[%clk
0:00:04.2]} 73. Kg6 {[%clk 0:00:01.2]} 73... Rg4+ {[%clk 0:00:04.3]} 74. Kf6
{[%clk 0:00:01.6]} 74... e4 {[%clk 0:00:04.3]} 0-1

[Event "Early-Titled-Tuesday-Blitz-March-12-2024"]
[Site "Chess.com"]
[Date "2024.03.12"]
[Round "9"]
[White "PepeCuenca"]
[Black "ActorXu"]
[Result "1/2-1/2"]
[WhiteElo "2713"]
[BlackElo "2858"]
[TimeControl "180+1"]
[EndTime "9:44:13 PDT"]
[Termination "Game drawn - insufficient material"]

1. d4 {[%clk 0:03:00.9]} 1... Nf6 {[%clk 0:02:59.6]} 2. Bf4 {[%clk 0:03:01]}
2... c5 {[%clk 0:02:58.8]} 3. dxc5 {[%clk 0:02:59.8]} 3... Na6 {[%clk
0:02:57.1]} 4. Qd4 {[%clk 0:02:56.9]} 4... Qa5+ {[%clk 0:02:51.1]} 5. c3 {[%clk
0:02:57]} 5... Qxc5 {[%clk 0:02:49.4]} 6. e3 {[%clk 0:02:57.2]} 6... e6 {[%clk
0:02:46.6]} 7. Nd2 {[%clk 0:02:43.2]} 7... b6 {[%clk 0:02:24]} 8. Qa4 {[%clk
0:02:27.3]} 8... Nb8 {[%clk 0:02:00.2]} 9. Bxb8 {[%clk 0:02:17.8]} 9... Rxb8
{[%clk 0:01:59.4]} 10. Qxa7 {[%clk 0:02:18.2]} 10... Bd6 {[%clk 0:01:53.8]} 11.
Qa4 {[%clk 0:01:37.6]} 11... O-O {[%clk 0:01:52.3]} 12. Qb5 {[%clk 0:01:30.8]}
12... Qc7 {[%clk 0:01:47]} 13. Ngf3 {[%clk 0:01:27.6]} 13... Bb7 {[%clk
0:01:46.6]} 14. Be2 {[%clk 0:01:23.4]} 14... Bc6 {[%clk 0:01:35.2]} 15. Qb3
{[%clk 0:01:23]} 15... b5 {[%clk 0:01:35]} 16. a3 {[%clk 0:01:18.9]} 16... Bd5
{[%clk 0:01:18.9]} 17. Qd1 {[%clk 0:01:14.8]} 17... h6 {[%clk 0:01:02.2]} 18.
O-O {[%clk 0:01:13.9]} 18... Rfc8 {[%clk 0:00:55.6]} 19. h3 {[%clk 0:01:13.6]}
19... Bf8 {[%clk 0:00:47.7]} 20. Nd4 {[%clk 0:01:12.2]} 20... Qb7 {[%clk
0:00:42.2]} 21. Bf3 {[%clk 0:01:10.8]} 21... Bxf3 {[%clk 0:00:39.7]} 22. Qxf3
{[%clk 0:01:09]} 22... d5 {[%clk 0:00:40]} 23. Qe2 {[%clk 0:00:38.2]} 23... Nd7
{[%clk 0:00:37.8]} 24. f4 {[%clk 0:00:35.6]} 24... Nc5 {[%clk 0:00:36.2]} 25.
Rae1 {[%clk 0:00:31.8]} 25... Na4 {[%clk 0:00:32.2]} 26. N2f3 {[%clk 0:00:28.6]}
26... Bd6 {[%clk 0:00:27.6]} 27. Rf2 {[%clk 0:00:19.8]} 27... Qd7 {[%clk
0:00:24.5]} 28. Qd2 {[%clk 0:00:13.5]} 28... f5 {[%clk 0:00:23.9]} 29. Kh1
{[%clk 0:00:07.7]} 29... Nb6 {[%clk 0:00:23.8]} 30. Qe2 {[%clk 0:00:06.6]} 30...
Nc4 {[%clk 0:00:23.8]} 31. Rg1 {[%clk 0:00:06.5]} 31... Rf8 {[%clk 0:00:20.7]}
32. g4 {[%clk 0:00:06.1]} 32... fxg4 {[%clk 0:00:21]} 33. Rxg4 {[%clk
0:00:03.9]} 33... Rf7 {[%clk 0:00:20.8]} 34. Rfg2 {[%clk 0:00:04.4]} 34... Rbf8
{[%clk 0:00:20.8]} 35. Qd3 {[%clk 0:00:04.7]} 35... Kh8 {[%clk 0:00:18.3]} 36.
Nh4 {[%clk 0:00:03.2]} 36... Kg8 {[%clk 0:00:16.5]} 37. Ng6 {[%clk 0:00:03.6]}
37... Re8 {[%clk 0:00:16.9]} 38. Qe2 {[%clk 0:00:02.3]} 38... e5 {[%clk
0:00:17.4]} 39. fxe5 {[%clk 0:00:02]} 39... Nxe5 {[%clk 0:00:18.1]} 40. Nxe5
{[%clk 0:00:01.6]} 40... Bxe5 {[%clk 0:00:19]} 41. Qd3 {[%clk 0:00:01.9]} 41...
Ref8 {[%clk 0:00:17.9]} 42. Qg6 {[%clk 0:00:02.2]} 42... Rf1+ {[%clk 0:00:13.5]}
43. Rg1 {[%clk 0:00:02.6]} 43... Rxg1+ {[%clk 0:00:14.2]} 44. Kxg1 {[%clk
0:00:02.4]} 44... Bxd4 {[%clk 0:00:13.9]} 45. cxd4 {[%clk 0:00:01.9]} 45... Qe7
{[%clk 0:00:14.4]} 46. Rg3 {[%clk 0:00:01.4]} 46... Rf7 {[%clk 0:00:13.3]} 47.
Qg4 {[%clk 0:00:01.8]} 47... Qf6 {[%clk 0:00:13]} 48. Rg2 {[%clk 0:00:01.5]}
48... Qf1+ {[%clk 0:00:12.9]} 49. Kh2 {[%clk 0:00:02.2]} 49... Kh8 {[%clk
0:00:12.1]} 50. Qc8+ {[%clk 0:00:02.2]} 50... Kh7 {[%clk 0:00:12.5]} 51. Qg4
{[%clk 0:00:03]} 51... Qf6 {[%clk 0:00:11.4]} 52. Qg3 {[%clk 0:00:03.2]} 52...
Qf5 {[%clk 0:00:11.3]} 53. Qe5 {[%clk 0:00:03]} 53... Qxe5+ {[%clk 0:00:10.9]}
54. dxe5 {[%clk 0:00:03.9]} 54... Re7 {[%clk 0:00:11.6]} 55. Kg3 {[%clk
0:00:04.2]} 55... Rxe5 {[%clk 0:00:12]} 56. Kf3 {[%clk 0:00:04.8]} 56... g5
{[%clk 0:00:10.2]} 57. Rc2 {[%clk 0:00:05]} 57... Rf5+ {[%clk 0:00:08.3]} 58.
Ke2 {[%clk 0:00:04.9]} 58... h5 {[%clk 0:00:08.1]} 59. Rc5 {[%clk 0:00:04.9]}
59... g4 {[%clk 0:00:08.6]} 60. hxg4 {[%clk 0:00:05.3]} 60... hxg4 {[%clk
0:00:09.4]} 61. Rc1 {[%clk 0:00:04.9]} 61... Kg6 {[%clk 0:00:09]} 62. Rf1 {[%clk
0:00:04.6]} 62... Rxf1 {[%clk 0:00:02.7]} 63. Kxf1 {[%clk 0:00:05.5]} 63... Kf5
{[%clk 0:00:03.4]} 64. b3 {[%clk 0:00:05.5]} 64... Ke5 {[%clk 0:00:03]} 65. Kf2
{[%clk 0:00:05]} 65... d4 {[%clk 0:00:02.7]} 66. exd4+ {[%clk 0:00:04.9]} 66...
Kxd4 {[%clk 0:00:03.6]} 67. a4 {[%clk 0:00:05.6]} 67... bxa4 {[%clk 0:00:03.4]}
68. bxa4 {[%clk 0:00:06.5]} 68... Kc5 {[%clk 0:00:04.1]} 69. Kg3 {[%clk
0:00:06.9]} 69... Kb4 {[%clk 0:00:04.6]} 70. Kxg4 {[%clk 0:00:07.8]} 70... Ka5
{[%clk 0:00:05]} 71. Kf5 {[%clk 0:00:07.7]} 71... Kxa4 {[%clk 0:00:05.9]}
1/2-1/2